bitfinex/quotes_BTCUSD_20250226
["timestamp","ask_amount","ask_price","bid_price","bid_amount"]
[1740607018446,0.1908242,84611.0,84610.0,0.25835435]
[1740607018653,0.27172157,84611.0,84610.0,0.00135435]
[1740607018989,0.20536505,84611.0,84610.0,0.00835435]
[1740607019198,0.1908242,84611.0,84610.0,0.02020075]
[1740607019542,0.1908242,84611.0,84610.0,0.02720075]
[1740607019810,0.1908242,84611.0,84610.0,0.26535435]
[1740607020052,0.1908242,84611.0,84610.0,0.27720075]
[1740607020556,0.1908242,84611.0,84610.0,0.26535435]
[1740607020753,0.1908242,84611.0,84610.0,0.27020075]
[1740607020975,0.1908242,84611.0,84610.0,0.26320075]
[1740607021172,0.1908242,84611.0,84610.0,0.27020075]
[1740607021375,0.1908242,84611.0,84610.0,0.26320075]
[1740607021773,0.0135432,84611.0,84610.0,0.27020075]
[1740607021995,0.20811496,84648.0,84632.0,0.0118464]
[1740607022197,0.20811496,84648.0,84645.0,0.0118464]
[1740607022396,0.20811496,84648.0,84647.0,0.0118464]
[1740607022597,0.0004229,84680.0,84660.0,0.0118464]
[1740607022598,0.177177,84661.0,84660.0,0.0118464]
[1740607023075,0.177187,84656.0,84655.0,0.0118464]
[1740607023829,0.20811496,84679.0,84646.0,0.00961259]
[1740607023830,0.1802974,84666.0,84665.0,0.0118464]
[1740607024598,0.1802974,84666.0,84665.0,0.2618464]
[1740607025237,0.0031314,84666.0,84665.0,0.2618464]
[1740607025438,0.1802974,84666.0,84665.0,0.2688464]
[1740607025642,0.236214,84669.0,84665.0,0.2688464]
[1740607025801,0.177166,84666.0,84665.0,0.2688464]
[1740607026625,0.236214,84669.0,84665.0,0.2688464]
[1740607026833,0.177166,84666.0,84665.0,0.2688464]
[1740607027031,0.177166,84666.0,84665.0,0.2618464]
[1740607027443,0.413361,84672.0,84671.0,0.0108464]
[1740607028000,0.413361,84672.0,84671.0,0.0098464]
[1740607028635,0.413361,84672.0,84671.0,0.0088464]
[1740607029705,0.413361,84672.0,84671.0,0.25]
[1740607029966,0.42790185,84672.0,84671.0,0.25]
[1740607030247,0.44790185,84672.0,84671.0,0.257]
[1740607030391,0.42790185,84672.0,84671.0,0.25]
[1740607030619,0.44790185,84672.0,84671.0,0.25]
[1740607030796,0.177185,84657.0,84656.0,0.25]
[1740607031523,0.38529996,84657.0,84656.0,0.25]
[1740607031682,0.177206,84647.0,84646.0,0.00040795]
[1740607032654,0.39986181,84647.0,84646.0,0.00040795]
[1740607032772,0.41986181,84647.0,84646.0,0.00040795]
[1740607032971,0.0311536,84646.0,84631.0,0.25]
[1740607033172,0.01296,84648.0,84631.0,0.25]
[1740607033173,0.19177785,84632.0,84631.0,0.25040887]
[1740607033419,0.43104641,84632.0,84631.0,0.25040887]
[1740607033652,0.44800519,84632.0,84631.0,0.25040887]
[1740607033814,0.52590519,84632.0,84631.0,0.00040887]
[1740607034146,0.42981159,84632.0,84631.0,0.00040887]
[1740607034345,0.44400641,84632.0,84631.0,0.00040887]
[1740607034686,0.42400641,84632.0,84631.0,0.00040887]
[1740607034890,0.46096519,84632.0,84631.0,0.00440887]
[1740607035093,0.46096519,84632.0,84631.0,0.00040887]
[1740607035288,0.58082184,84632.0,84631.0,0.00040887]
[1740607035519,0.58082184,84632.0,84631.0,0.00740887]
[1740607035722,0.56786184,84632.0,84631.0,0.00740887]
[1740607035912,0.58082184,84632.0,84631.0,0.00040887]
[1740607036113,0.44096519,84632.0,84631.0,0.00040887]
[1740607036324,0.46096519,84632.0,84631.0,0.00040887]
[1740607036515,0.43285281,84632.0,84631.0,0.00040887]
[1740607037139,0.39831196,84632.0,84631.0,0.00040887]
[1740607037312,0.39831196,84632.0,84631.0,0.00740887]
[1740607037313,0.38535196,84632.0,84631.0,0.00740887]
[1740607037538,0.38535196,84632.0,84631.0,0.00040887]
[1740607037994,0.38535196,84632.0,84631.0,0.00740887]
[1740607038194,0.38535196,84632.0,84631.0,0.00040887]
[1740607038397,0.38535196,84632.0,84631.0,0.00740887]
[1740607038741,0.38535196,84632.0,84631.0,0.25740887]
[1740607039370,0.41899573,84632.0,84631.0,0.25040887]
[1740607039754,0.41899573,84632.0,84631.0,0.00040887]
[1740607040482,0.45014933,84632.0,84631.0,0.00040887]
[1740607040661,0.54570811,84632.0,84631.0,0.00740887]
[1740607040864,0.54570811,84632.0,84631.0,0.00040887]
[1740607041084,0.54570811,84632.0,84631.0,0.00125547]
[1740607041289,0.54570811,84632.0,84631.0,0.00825547]
[1740607041493,0.54570811,84632.0,84631.0,0.00125547]
[1740607041889,0.54570811,84632.0,84631.0,0.00625547]
[1740607042086,0.54570811,84632.0,84631.0,0.00125547]
[1740607042323,0.54570811,84632.0,84631.0,0.00525547]
[1740607043692,0.54570811,84632.0,84631.0,0.00125547]
[1740607043896,0.54570811,84632.0,84631.0,0.00525547]
[1740607044302,0.54570811,84632.0,84631.0,0.00125547]
[1740607044510,0.54570811,84632.0,84610.0,0.0009464]
[1740607044511,0.2084346,84611.0,84610.0,0.0009464]
[1740607044710,0.44411854,84611.0,84610.0,0.00135592]
[1740607044914,0.50882967,84611.0,84610.0,0.00135592]
[1740607045812,0.50882967,84611.0,84610.0,0.00835592]
[1740607046221,0.2084496,84604.0,84602.0,0.0002]
[1740607046421,0.35486643,84604.0,84602.0,0.0002]
[1740607046662,0.2084706,84594.0,84593.0,7.102e-05]
[1740607046861,0.41665369,84594.0,84593.0,7.102e-05]
[1740607047061,0.41846009,84594.0,84593.0,7.102e-05]
[1740607047259,0.42961369,84594.0,84593.0,7.102e-05]
[1740607047462,0.56401119,84594.0,84593.0,7.102e-05]
[1740607047690,0.55105119,84594.0,84593.0,7.102e-05]
[1740607047910,0.56401119,84594.0,84593.0,7.102e-05]
[1740607048120,0.58242232,84594.0,84593.0,7.102e-05]
[1740607048698,0.58342232,84594.0,84593.0,0.00607102]
[1740607048917,0.2084896,84585.0,84584.0,0.0001]
[1740607049120,0.29294883,84585.0,84584.0,0.0001]
[1740607049305,0.31135996,84585.0,84584.0,0.0001]
[1740607050124,0.32472698,84585.0,84584.0,0.0001]
[1740607050333,0.30631585,84585.0,84584.0,0.0001]
[1740607051024,0.1884896,84585.0,84584.0,0.0001]
[1740607051249,0.38545096,84585.0,84584.0,0.0001]
[1740607051497,0.40956456,84585.0,84584.0,0.0001]
[1740607052849,0.42410541,84585.0,84584.0,0.0001]
[1740607053056,0.44251654,84585.0,84584.0,0.0001]
[1740607053478,0.44351654,84585.0,84584.0,0.0001]
[1740607053830,0.44251654,84585.0,84584.0,0.0001]
[1740607054206,0.44351654,84585.0,84584.0,0.0001]
[1740607054411,0.44251654,84585.0,84584.0,0.0009466]
[1740607054955,0.44351654,84585.0,84584.0,0.0009466]
[1740607055161,0.39841096,84585.0,84584.0,0.0009466]
[1740607055512,0.38545096,84585.0,84584.0,0.0009466]
[1740607055675,0.13881032,84585.0,84584.0,0.0009466]
[1740607055877,0.31614632,84585.0,84584.0,0.0009466]
[1740607056413,0.31714632,84585.0,84584.0,0.0009466]
[1740607056678,0.31714632,84585.0,84584.0,0.259793]
[1740607057037,0.31814632,84585.0,84584.0,0.259793]
[1740607057286,0.31714632,84585.0,84584.0,0.259793]
[1740607057596,0.179336,84585.0,84584.0,0.259793]
[1740607057800,0.177336,84585.0,84584.0,0.259793]
[1740607058654,0.177336,84585.0,84584.0,0.2509466]
[1740607059650,0.178336,84585.0,84584.0,0.0009466]
[1740607059994,0.177336,84585.0,84584.0,0.0009466]
[1740607060153,0.178336,84585.0,84584.0,0.0009466]
[1740607060502,0.177336,84585.0,84584.0,0.0009466]
[1740607060899,0.178336,84585.0,84584.0,0.0009466]
[1740607061085,0.4040345,84585.0,84584.0,0.0009466]
[1740607061285,0.4030345,84585.0,84584.0,0.0009466]
[1740607061492,0.4040345,84585.0,84584.0,0.0009466]
[1740607062946,0.4030345,84585.0,84584.0,0.0009466]
[1740607063122,0.4040345,84585.0,84584.0,0.0009466]
[1740607063488,0.41857535,84585.0,84584.0,0.0009466]
[1740607063687,0.45337208,84585.0,84584.0,0.0009466]
[1740607063886,0.45237208,84585.0,84584.0,0.0009466]
[1740607064123,0.45237208,84585.0,84584.0,0.0015988]
[1740607064747,0.45337208,84585.0,84584.0,0.0015988]
[1740607064887,0.44221848,84585.0,84584.0,0.0015988]
[1740607065097,0.45337208,84585.0,84584.0,0.0015988]
[1740607065955,0.45137208,84585.0,84584.0,0.0015988]
[1740607066266,0.57737208,84585.0,84584.0,0.0015988]
[1740607066614,0.57637208,84585.0,84584.0,0.0015988]
[1740607067243,0.62547208,84585.0,84584.0,0.0015988]
[1740607067918,0.62847208,84585.0,84584.0,0.0015988]
[1740607068124,0.61731848,84585.0,84584.0,0.0015988]
[1740607068344,0.50347208,84585.0,84584.0,0.0015988]
[1740607068943,0.45437208,84585.0,84584.0,0.0015988]
[1740607069161,0.31614632,84585.0,84584.0,0.0015988]
[1740607069363,0.31914632,84585.0,84584.0,0.0015988]
[1740607069775,0.31614632,84585.0,84584.0,0.0015988]
[1740607069972,0.33068717,84585.0,84584.0,0.0015988]
[1740607070719,0.33168717,84585.0,84584.0,0.0015988]
[1740607070918,0.45154382,84585.0,84584.0,0.0015988]
[1740607071098,0.45254382,84585.0,84584.0,0.0015988]
[1740607071303,0.31814632,84585.0,84584.0,0.0015988]
[1740607072387,0.31614632,84585.0,84584.0,0.0015988]
[1740607072722,0.31714632,84585.0,84584.0,0.0015988]
[1740607072945,0.31614632,84585.0,84584.0,0.0015988]
[1740607073386,0.31714632,84585.0,84584.0,0.0015988]
[1740607073585,0.43700297,84585.0,84584.0,0.0015988]
[1740607074224,0.31614632,84585.0,84584.0,0.0015988]
[1740607074417,0.31714632,84585.0,84584.0,0.0015988]
[1740607075714,0.33068717,84585.0,84584.0,0.0015988]
[1740607075920,0.34284077,84585.0,84584.0,0.0015988]
[1740607076280,0.34184077,84585.0,84584.0,0.0015988]
[1740607076489,0.46269742,84585.0,84584.0,0.0015988]
[1740607076711,0.48622764,84585.0,84584.0,0.0015988]
[1740607077193,0.48722764,84585.0,84584.0,0.0015988]
[1740607077716,0.61322764,84585.0,84584.0,0.0015988]
[1740607077895,0.66072764,84585.0,84584.0,0.0015988]
[1740607078514,0.66115124,84585.0,84584.0,0.0015988]
[1740607079625,0.65915124,84585.0,84584.0,0.0015988]
[1740607079821,0.66015124,84585.0,84584.0,0.0015988]
[1740607080762,0.65915124,84585.0,84584.0,0.0015988]
[1740607081368,2.05785124,84585.0,84584.0,0.0014988]
[1740607081667,0.32803845,84581.0,84578.0,0.0050205]
[1740607081847,0.4478951,84581.0,84578.0,0.0050205]
[1740607082025,0.177344,84581.0,84578.0,0.0050205]
[1740607082228,0.32751552,84581.0,84578.0,0.0050205]
[1740607082845,0.34205637,84581.0,84578.0,0.0050205]
[1740607083083,0.34305637,84581.0,84578.0,0.0050205]
[1740607083286,0.34205637,84581.0,84578.0,0.0050205]
[1740607083627,0.32851552,84581.0,84578.0,0.0050205]
[1740607084000,0.08053601,84581.0,84578.0,0.0050205]
[1740607084208,0.236456,84582.0,84578.0,0.0050205]
[1740607084410,0.177344,84581.0,84578.0,0.0050205]
[1740607085501,0.178344,84581.0,84580.0,0.0018458]
[1740607085690,0.177344,84581.0,84580.0,0.0008458]
[1740607085962,0.178344,84581.0,84580.0,0.0018458]
[1740607086184,0.19288485,84581.0,84580.0,0.0018458]
[1740607086353,0.20403845,84581.0,84580.0,0.0018458]
[1740607086560,0.20303845,84581.0,84580.0,0.0008458]
[1740607086815,0.20403845,84581.0,84580.0,0.0018458]
[1740607086998,0.32903845,84581.0,84580.0,0.0018458]
[1740607087139,0.35356867,84581.0,84580.0,0.0018458]
[1740607087350,0.46277824,84581.0,84580.0,0.0018458]
[1740607087954,0.46177824,84581.0,84580.0,0.0008458]
[1740607088392,0.46277824,84581.0,84580.0,0.0078458]
[1740607088660,0.46277824,84581.0,84580.0,0.0008458]
[1740607088861,0.35356867,84581.0,84580.0,0.0008458]
[1740607089037,0.36752867,84581.0,84580.0,0.0078458]
[1740607089180,0.36652867,84581.0,84580.0,0.0008458]
[1740607089591,0.36752867,84581.0,84580.0,0.0078458]
[1740607089793,0.47713424,84581.0,84580.0,0.0008458]
[1740607090400,0.46598064,84581.0,84580.0,0.0008458]
[1740607090612,0.47713424,84581.0,84580.0,0.0008458]
[1740607091220,0.47813424,84581.0,84580.0,0.0068458]
[1740607091626,0.47713424,84581.0,84580.0,0.0008458]
[1740607091829,0.47713424,84581.0,84580.0,0.0018458]
[1740607092110,0.47613424,84581.0,84580.0,0.0008458]
[1740607092465,0.47613424,84581.0,84580.0,0.0018458]
[1740607092659,0.47613424,84581.0,84580.0,0.0008458]
[1740607093392,0.35437507,84581.0,84580.0,0.0008458]
[1740607093620,0.36552867,84581.0,84580.0,0.0008458]
[1740607093737,0.60780867,84581.0,84580.0,0.0008458]
[1740607094703,0.60580867,84581.0,84580.0,0.0008458]
[1740607095106,0.175344,84581.0,84580.0,0.0008458]
[1740607095319,0.177344,84581.0,84580.0,0.0008458]
[1740607095458,0.174344,84581.0,84580.0,0.0008458]
[1740607096056,0.172344,84581.0,84580.0,0.0096922]
[1740607096257,0.172344,84581.0,84580.0,0.0038458]
[1740607096463,0.172344,84581.0,84580.0,0.0126922]
[1740607096665,0.172344,84581.0,84580.0,0.2626922]
[1740607096873,0.2587211,84581.0,84580.0,0.2538458]
[1740607097224,0.172344,84581.0,84580.0,0.2538458]
[1740607097772,0.172344,84581.0,84580.0,0.0038458]
[1740607097972,0.172344,84581.0,84580.0,0.0126922]
[1740607098191,0.172344,84581.0,84580.0,0.0096922]
[1740607098634,0.173344,84581.0,84580.0,0.0146922]
[1740607098942,0.173344,84581.0,84580.0,0.0096922]
[1740607099151,0.173344,84581.0,84580.0,0.0897922]
[1740607099355,0.236452,84584.0,84583.0,0.0088464]
[1740607099592,0.0004236,84585.0,84584.0,0.1039464]
[1740607099766,0.1777556,84587.0,84586.0,0.0288464]
[1740607099941,0.4141996,84587.0,84586.0,0.02896825]
[1740607100341,0.4141996,84587.0,84586.0,0.02796825]
[1740607100752,0.4141996,84587.0,84586.0,0.07812961]
[1740607101009,0.4141996,84587.0,84586.0,0.02796825]
[1740607101538,0.354575,84609.0,84586.0,0.02796825]
[1740607101539,0.177256,84623.0,84622.0,0.0078464]
[1740607101762,0.177256,84623.0,84622.0,0.0278464]
[1740607102180,0.23628,84645.0,84644.0,0.0078464]
[1740607102580,0.23628,84645.0,84644.0,0.0278464]
[1740607102799,0.23628,84645.0,84644.0,0.02796825]
[1740607103099,0.177227,84637.0,84636.0,0.00696825]
[1740607103323,0.177233,84634.0,84633.0,0.00696825]
[1740607104194,0.177233,84634.0,84633.0,0.02696825]
[1740607104694,0.177233,84634.0,84633.0,0.27696825]
[1740607105097,0.177233,84634.0,84633.0,0.30467727]
[1740607105299,0.177233,84634.0,84633.0,0.31167727]
[1740607105503,0.177233,84634.0,84633.0,0.30467727]
[1740607105850,0.177233,84634.0,84633.0,0.31167727]
[1740607106033,0.177233,84634.0,84633.0,0.28396825]
[1740607106243,0.177233,84634.0,84633.0,0.25696825]
[1740607106447,0.177233,84634.0,84633.0,0.28396825]
[1740607106993,0.177233,84634.0,84633.0,0.26396825]
[1740607107376,0.236251,84656.0,84645.0,0.00696825]
[1740607107552,0.1776313,84646.0,84645.0,0.00696825]
[1740607107767,0.1776313,84646.0,84645.0,0.02696825]
[1740607108330,0.1776313,84646.0,84633.0,0.257]
[1740607108331,0.177212,84644.0,84643.0,0.00696825]
[1740607108538,0.30172093,84646.0,84633.0,0.25696825]
[1740607108539,0.177233,84634.0,84633.0,0.25696825]
[1740607108741,0.236308,84636.0,84632.0,0.0001219]
[1740607108965,0.177235,84633.0,84632.0,0.0001219]
[1740607109613,0.177235,84633.0,84632.0,0.00709015]
[1740607109804,0.177235,84633.0,84632.0,0.25709015]
[1740607110014,0.177235,84633.0,84632.0,0.27709015]
[1740607110581,0.236299,84639.0,84638.0,0.00696825]
[1740607110779,0.413522,84639.0,84638.0,0.12146779]
[1740607111691,0.413522,84639.0,84638.0,0.37146779]
[1740607112247,0.23628,84645.0,84644.0,0.02696825]
[1740607112598,0.01292,84682.0,84645.0,0.02696825]
[1740607112918,0.1776313,84646.0,84645.0,0.02696825]
[1740607113297,0.0004233,84646.0,84645.0,0.02696825]
[1740607113716,0.1776313,84646.0,84645.0,0.27696825]
[1740607113921,0.0004233,84646.0,84645.0,0.31709175]
[1740607114649,0.1775899,84666.0,84665.0,0.02696825]
[1740607115074,0.1775899,84666.0,84665.0,0.10386825]
[1740607115075,0.0004239,84666.0,84665.0,0.10386825]
[1740607115250,0.0004239,84666.0,84665.0,0.12765503]
[1740607115655,0.0004239,84666.0,84665.0,0.37765503]
[1740607115855,0.0004239,84666.0,84665.0,0.37777693]
[1740607116498,0.1775899,84666.0,84665.0,0.37777693]
[1740607117576,0.0004239,84666.0,84665.0,0.38477693]
[1740607117782,0.0004239,84666.0,84665.0,0.36477693]
[1740607117783,0.1775899,84666.0,84665.0,0.36477693]
[1740607118080,0.0004239,84666.0,84665.0,0.38477693]
[1740607118498,0.0004239,84666.0,84665.0,0.37777693]
[1740607118725,0.1775899,84666.0,84665.0,0.33399015]
[1740607118934,0.1775899,84666.0,84665.0,0.34099015]
[1740607119117,0.1775899,84666.0,84665.0,0.33399015]
[1740607119284,0.1775899,84666.0,84665.0,0.27709015]
[1740607119507,0.236213,84669.0,84665.0,0.28409015]
[1740607119710,0.177166,84666.0,84665.0,0.28409015]
[1740607120742,0.177166,84666.0,84665.0,0.27709015]
[1740607120889,0.177166,84666.0,84665.0,0.31179916]
[1740607121546,0.177166,84666.0,84665.0,0.31879916]
[1740607121692,0.177166,84666.0,84665.0,0.29109015]
[1740607122126,0.177166,84666.0,84665.0,0.28409015]
[1740607122329,0.177166,84666.0,84665.0,0.27709015]
[1740607122542,0.177166,84666.0,84665.0,0.28409015]
[1740607123241,0.177166,84666.0,84665.0,0.26409015]
[1740607124134,0.0004239,84670.0,84665.0,0.28409015]
[1740607124341,0.0004239,84670.0,84669.0,0.02696825]
[1740607124955,0.17715,84674.0,84673.0,0.02]
[1740607125300,0.177149,84675.0,84674.0,0.02696825]
[1740607126446,0.0050205,84695.0,84694.0,0.00696825]
[1740607126626,0.0050205,84695.0,84694.0,0.37726574]
[1740607126759,0.0050205,84695.0,84694.0,0.4426828]
[1740607127777,0.0054281,84695.0,84694.0,0.2655748]
[1740607127984,0.0054281,84695.0,84694.0,0.45015774]
[1740607128134,0.0054281,84695.0,84694.0,0.62726574]
[1740607128346,0.0054281,84695.0,84694.0,0.63423454]
[1740607128554,0.0054281,84695.0,84694.0,0.45712654]
[1740607128720,0.0054281,84695.0,84694.0,0.63423454]
[1740607129074,0.0054281,84695.0,84694.0,0.75079789]
[1740607129733,0.0004239,84708.0,84707.0,0.20404825]
[1740607129963,0.0004239,84708.0,84707.0,0.20417015]
[1740607130172,0.0004239,84708.0,84707.0,0.218711]
[1740607130798,0.0004239,84708.0,84707.0,0.27709015]
[1740607130994,0.0004239,84708.0,84707.0,0.31176796]
[1740607131133,0.1775019,84708.0,84707.0,0.31176796]
[1740607131991,0.1775019,84708.0,84707.0,0.28405895]
[1740607132703,0.1775019,84708.0,84707.0,0.26405895]
[1740607133327,0.1775019,84708.0,84707.0,0.25709015]
[1740607133715,0.0004239,84708.0,84707.0,0.27709015]
[1740607133872,0.1775019,84708.0,84707.0,0.27709015]
[1740607134081,0.1775019,84708.0,84707.0,0.25709015]
[1740607138520,0.0004239,84708.0,84707.0,0.27709015]
[1740607139082,0.0004239,84708.0,84707.0,0.45417015]
[1740607139286,0.0004239,84708.0,84707.0,0.468711]
[1740607139498,0.0004239,84708.0,84707.0,0.568911]
[1740607139720,0.0004239,84718.0,84708.0,0.01454085]
[1740607139902,0.0004239,84718.0,84717.0,0.02]
[1740607140280,0.0004239,84718.0,84717.0,0.02696825]
[1740607140621,0.1774819,84718.0,84717.0,0.02696825]
[1740607140817,0.1774819,84718.0,84717.0,0.27696825]
[1740607141019,0.1774819,84718.0,84717.0,0.2951363]
[1740607141218,0.1774819,84718.0,84717.0,0.32464993]
[1740607142282,0.0004239,84718.0,84717.0,0.32464993]
[1740607142476,0.0004239,84718.0,84717.0,0.50170993]
[1740607142687,0.0004239,84718.0,84717.0,0.32464993]
[1740607142887,0.1774819,84718.0,84717.0,0.32464993]
[1740607143085,0.0004239,84718.0,84717.0,0.50170993]
[1740607143313,0.0004239,84718.0,84717.0,0.53625078]
[1740607144136,0.235988,84750.0,84717.0,0.53625078]
[1740607144137,0.235885,84788.0,84740.0,0.0615091]
[1740607144385,0.24176,84800.0,84740.0,0.0615091]
[1740607144386,0.23592,84775.0,84740.0,0.71424764]
[1740607144517,0.0482,84787.0,84740.0,0.1379091]
[1740607144728,0.235939,84768.0,84740.0,0.15498801]
[1740607144930,0.008,84741.0,84740.0,0.33365176]
[1740607145130,0.008,84741.0,84740.0,0.33200001]
[1740607145371,0.008,84741.0,84740.0,0.12044716]
[1740607145587,0.185009,84741.0,84740.0,0.05115175]
[1740607145787,0.185009,84741.0,84740.0,0.03407284]
[1740607146754,0.185009,84741.0,84740.0,0.25709015]
[1740607149731,0.185009,84741.0,84740.0,0.00709015]
[1740607150081,0.185009,84741.0,84740.0,0.02709015]
[1740607150692,0.23599,84750.0,84749.0,0.00696825]
[1740607150893,0.412981,84750.0,84749.0,0.00696825]
[1740607151417,0.412981,84750.0,84749.0,0.02696825]
[1740607151770,0.412981,84750.0,84749.0,0.27696825]
[1740607151964,0.23598,84753.0,84750.0,0.02696825]
[1740607152183,0.0050205,84761.0,84750.0,0.02696825]
[1740607152184,0.235978,84754.0,84750.0,0.02696825]
[1740607152384,0.1774129,84751.0,84750.0,0.02696825]
[1740607153687,0.1774129,84751.0,84750.0,0.26400928]
[1740607154875,0.1774129,84751.0,84750.0,0.25704103]
[1740607155253,0.2233129,84751.0,84750.0,0.25696825]
[1740607155629,0.1774129,84751.0,84750.0,0.25696825]
[1740607155808,0.1774129,84751.0,84750.0,0.02696825]
[1740607156787,0.1774129,84751.0,84750.0,0.27696825]
[1740607159265,0.1774129,84751.0,84750.0,0.25696825]
[1740607159422,0.1774129,84751.0,84750.0,0.27696825]
[1740607160969,0.0004239,84751.0,84750.0,0.27696825]
[1740607161167,0.0004239,84751.0,84750.0,0.45395925]
[1740607161465,0.0004239,84751.0,84750.0,0.27696825]
[1740607161624,0.1774129,84751.0,84750.0,0.27696825]
[1740607161826,0.0004239,84751.0,84750.0,0.45395925]
[1740607162009,0.0004239,84751.0,84750.0,0.37156338]
[1740607162212,0.1774129,84751.0,84750.0,0.37156338]
[1740607162463,0.1774129,84751.0,84750.0,0.27696825]
[1740607162870,0.0004239,84751.0,84750.0,0.27696825]
[1740607163386,0.0004239,84751.0,84750.0,0.47395925]
[1740607164612,0.0004239,84751.0,84750.0,0.4955543]
[1740607164818,0.0004239,84751.0,84750.0,0.8995543]
[1740607165017,0.004868,84761.0,84760.0,0.2184791]
[1740607165178,0.00244737,84761.0,84760.0,0.56743033]
[1740607165374,0.00244737,84761.0,84760.0,0.6194791]
[1740607165578,2.05e-05,84795.0,84794.0,0.20386725]
[1740607165880,0.1769175,84795.0,84794.0,0.04935498]
[1740607166089,0.1769175,84795.0,84794.0,0.02696825]
[1740607166350,2.05e-05,84795.0,84794.0,0.04696825]
[1740607166700,0.1769175,84795.0,84794.0,0.30402245]
[1740607166897,0.1773256,84795.0,84794.0,0.30402245]
[1740607167299,0.1773256,84795.0,84794.0,0.28402245]
[1740607168423,0.0004286,84795.0,84794.0,0.28402245]
[1740607168642,0.0004286,84795.0,84794.0,0.48092145]
[1740607168882,0.0004286,84795.0,84794.0,0.4954623]
[1740607169033,0.0004286,84795.0,84794.0,0.8227623]
[1740607169230,0.0004286,84795.0,84794.0,0.9000623]
[1740607169436,0.0004286,84795.0,84794.0,1.56771895]
[1740607169766,0.0050205,84828.0,84827.0,0.02696825]
[1740607169982,0.0050205,84828.0,84827.0,0.02709015]
[1740607170245,0.226378,84852.0,84851.0,0.00696825]
[1740607170442,0.226378,84852.0,84851.0,0.02696825]
[1740607171686,0.226378,84852.0,84851.0,0.25]
[1740607171913,0.22956215,84852.0,84851.0,0.25]
[1740607172107,0.40145848,84852.0,84851.0,0.25]
[1740607172512,0.30746215,84852.0,84851.0,0.25]
[1740607172712,0.176792,84845.0,84844.0,0.00696825]
[1740607172929,0.176801,84841.0,84840.0,0.00696825]
[1740607173131,0.176807,84838.0,84837.0,0.00696825]
[1740607173480,0.176809,84837.0,84836.0,0.25696825]
[1740607174115,0.176809,84837.0,84836.0,0.27696825]
[1740607174530,0.176809,84837.0,84836.0,0.25696825]
[1740607174933,0.176809,84837.0,84836.0,0.25]
[1740607175154,0.176809,84837.0,84836.0,0.25696825]
[1740607175897,0.176809,84837.0,84836.0,0.27696825]
[1740607176680,0.176809,84837.0,84836.0,0.25696825]
[1740607177809,0.176809,84837.0,84836.0,0.27696825]
[1740607178012,0.176809,84837.0,84836.0,0.25696825]
[1740607179441,0.24534582,84837.0,84836.0,0.25]
[1740607179612,0.18051672,84837.0,84836.0,0.25]
[1740607179938,0.3283,84838.0,84835.0,0.25696825]
[1740607179939,0.176811,84836.0,84835.0,0.25696825]
[1740607180501,0.176811,84836.0,84835.0,0.27696825]
[1740607180696,0.176811,84836.0,84835.0,0.02696825]
[1740607181209,0.176811,84836.0,84835.0,0.00696825]
[1740607181592,0.176811,84836.0,84835.0,0.02696825]
[1740607181593,0.18051872,84836.0,84835.0,0.02696825]
[1740607182118,0.18051872,84836.0,84835.0,0.02596825]
[1740607182726,0.18051872,84836.0,84835.0,0.27596825]
[1740607183967,0.18051872,84836.0,84835.0,0.25596825]
[1740607184172,0.18051872,84836.0,84835.0,0.27596825]
[1740607184389,0.22829881,84836.0,84835.0,0.245]
[1740607184738,0.176817,84833.0,84832.0,0.00596825]
[1740607184934,0.176828,84828.0,84827.0,0.2451219]
[1740607185386,0.176828,84828.0,84827.0,0.25109015]
[1740607185599,0.176828,84828.0,84827.0,0.24609015]
[1740607186172,0.176828,84828.0,84827.0,0.24109015]
[1740607187176,0.176828,84828.0,84827.0,0.28719917]
[1740607187539,0.3283,84859.0,84849.0,0.02596825]
[1740607187540,0.223582,84850.0,84849.0,0.02596825]
[1740607189903,0.0033181,84854.0,84849.0,0.02596825]
[1740607190104,0.1800921,84854.0,84853.0,0.02596825]
[1740607190712,0.1800921,84854.0,84853.0,0.27596825]
[1740607191555,0.1800921,84854.0,84853.0,0.30368698]
[1740607191757,0.1800921,84854.0,84853.0,0.27609015]
[1740607192545,0.1800921,84854.0,84853.0,0.28312009]
[1740607192748,0.0033181,84854.0,84853.0,0.28312009]
[1740607192932,0.1800921,84854.0,84853.0,0.28312009]
[1740607193490,0.1800921,84854.0,84853.0,0.27715184]
[1740607193691,0.1800921,84854.0,84853.0,0.28312009]
[1740607193888,0.1800921,84854.0,84853.0,0.26312009]
[1740607194048,0.1800921,84854.0,84853.0,0.2743808]
[1740607194868,0.1800921,84854.0,84853.0,0.26523201]
[1740607194869,0.2298921,84854.0,84853.0,0.26523201]
[1740607195068,0.2298921,84854.0,84853.0,0.27120026]
[1740607195269,0.23369162,84854.0,84853.0,0.27120026]
[1740607195470,0.23369162,84854.0,84853.0,0.27020026]
[1740607195682,0.0531181,84854.0,84853.0,0.27190961]
[1740607195879,0.1800921,84854.0,84853.0,0.27190961]
[1740607196049,0.1800921,84854.0,84853.0,0.27890961]
[1740607196453,0.1800921,84854.0,84853.0,0.27190961]
[1740607197203,0.0033181,84854.0,84853.0,0.27890961]
[1740607197379,0.1800921,84854.0,84853.0,0.30680057]
[1740607197586,0.1800921,84854.0,84853.0,0.27890961]
[1740607198464,0.1800921,84854.0,84853.0,0.25890961]
[1740607198666,0.18390016,84854.0,84853.0,0.27128102]
[1740607198887,0.176805,84839.0,84838.0,0.01169441]
[1740607199084,0.176805,84839.0,84838.0,0.01778468]
[1740607199085,0.16556922,84839.0,84838.0,0.01778468]
[1740607199291,0.0037412,84854.0,84853.0,0.28254425]
[1740607199544,0.3283,84914.0,84890.0,0.02596825]
[1740607199710,0.1822762,84891.0,84890.0,0.02596825]
[1740607200124,0.0055792,84891.0,84890.0,0.02596825]
[1740607200302,0.0055792,84891.0,84890.0,0.07676825]
[1740607200528,0.0055792,84891.0,84890.0,0.50747238]
[1740607200736,0.0055792,84891.0,84890.0,0.49667238]
[1740607200904,0.0055792,84891.0,84890.0,0.51121323]
[1740607201104,0.0055792,84891.0,84890.0,0.51621323]
[1740607201300,0.00598796,84891.0,84890.0,0.50167238]
[1740607201505,0.00598796,84891.0,84890.0,0.10471618]
[1740607201753,0.00598796,84891.0,84890.0,0.0450623]
[1740607202107,0.00598796,84891.0,84890.0,0.0400623]
[1740607202563,0.00598796,84891.0,84890.0,0.0470623]
[1740607202884,0.00598796,84891.0,84890.0,0.02109405]
[1740607202885,0.00979602,84891.0,84890.0,0.02109405]
[1740607203010,0.176699,84890.0,84888.0,0.01169441]
[1740607203211,0.235667,84866.0,84863.0,0.00596825]
[1740607203467,0.176761,84860.0,84859.0,0.00596825]
[1740607203672,0.176765,84858.0,84857.0,0.00596825]
[1740607204028,0.18057711,84858.0,84857.0,0.02596825]
[1740607204236,0.18057711,84858.0,84857.0,0.00596825]
[1740607204436,0.18057711,84858.0,84857.0,0.02596825]